{"text_format":"3","workbook":"xlsx","n_sheets":1,"sheets":["Månedlig familiebudsjett"],"read":"whole","date_system":"1900"}

{"sheet":"Månedlig familiebudsjett","index":0,"n_rows":67,"n_cols":10,"rows_kept":67}
[null,"Månedlig familiebudsjett"]
[null,"Sammendragstabell","Totalt\nPlanlagte kostnader","Totalt\nFaktiske kostnader","Totalt\nForskjell",null,"Planlagt månedlig inntekt","Beløp"]
[null,null,{"$f":"Bolig[[#Totals],[Planlagte\nkostnader]]+Transport[[#Totals],[Planlagte\nkostnader]]+Forsikring[[#Totals],[Planlagte\nkostnader]]+Mat[[#Totals],[Planlagte\nkostnader]]+Barn[[#Totals],[Planlagte\nkostnader]]+Juridisk[[#Totals],[Planlagte\nkostnader]]+Sparing[[#Totals],[Planlagte\nkostnader]]+Lån[[#Totals],[Planlagte\nkostnader]]+Underholdning[[#Totals],[Planlagte\nkostnader]]+Skatt[[#Totals],[Planlagte \nkostnader]]+PersonalCare[[#Totals],[Planlagte\nkostnader]]+Kjæledyr[[#Totals],[Planlagte\nkostnader]]+Gaver[[#Totals],[Planlagte\nkostnader]]","v":{"v":1203,"d":"kr 1,203"}},{"$f":"Bolig[[#Totals],[Faktiske\nkostnader]]+Transport[[#Totals],[Faktiske\nkostnader]]+Forsikring[[#Totals],[Faktiske\nkostnader]]+Mat[[#Totals],[Faktiske\nkostnader]]+Barn[[#Totals],[Faktiske\nkostnader]]+Juridisk[[#Totals],[Faktiske\nkostnader]]+Sparing[[#Totals],[Faktiske\nkostnader]]+Lån[[#Totals],[Faktiske\nkostnader]]+Underholdning[[#Totals],[Faktiske\nkostnader]]+Skatt[[#Totals],[Faktiske \nkostnader]]+PersonalCare[[#Totals],[Faktiske\nkostnader]]+Kjæledyr[[#Totals],[Faktiske\nkostnader]]+Gaver[[#Totals],[Faktiske\nkostnader]]","v":{"v":1317,"d":"kr 1,317"}},{"$f":"Bolig[[#Totals],[Forskjell]]+Transport[[#Totals],[Forskjell]]+Forsikring[[#Totals],[Forskjell]]+Mat[[#Totals],[Forskjell]]+Barn[[#Totals],[Forskjell]]+Juridisk[[#Totals],[Forskjell]]+Sparing[[#Totals],[Forskjell]]+Lån[[#Totals],[Forskjell]]+Underholdning[[#Totals],[Forskjell]]+Skatt[[#Totals],[Forskjell]]+PersonalCare[[#Totals],[Forskjell]]+Kjæledyr[[#Totals],[Forskjell]]+Gaver[[#Totals],[Forskjell]]","v":{"v":-114,"d":"-kr 114"}},null,"Inntekt 1",{"v":4000,"d":"kr 4,000"}]
[{"$nulls":6},"Inntekt 2",{"v":1200,"d":"kr 1,200"}]
[null,"Bolig","Planlagte\nkostnader","Faktiske\nkostnader","Forskjell",null,"Ekstra inntekt",{"v":300,"d":"kr 300"}]
[null,"Boliglån eller leie",{"v":1000,"d":"kr 1,000"},{"v":1000,"d":"kr 1,000"},{"$f":"Bolig[Planlagte\nkostnader]-Bolig[Faktiske\nkostnader]","v":{"v":0,"d":"kr 0"}},null,"Total månedlig inntekt",{"$f":"SUM(H3:H5)","v":{"v":5500,"d":"kr 5,500"}}]
[null,"Andre boliglån eller leie",{"v":0,"d":"kr 0"},{"v":0,"d":"kr 0"},{"$f":"Bolig[Planlagte\nkostnader]-Bolig[Faktiske\nkostnader]","v":{"v":0,"d":"kr 0"}}]
[null,"Telefon",{"v":62,"d":"kr 62"},{"v":100,"d":"kr 100"},{"$f":"Bolig[Planlagte\nkostnader]-Bolig[Faktiske\nkostnader]","v":{"v":-38,"d":"-kr 38"}},null,"Faktisk månedlig inntektskilde","Beløp"]
[null,"Elektrisitet",{"v":44,"d":"kr 44"},{"v":125,"d":"kr 125"},{"$f":"Bolig[Planlagte\nkostnader]-Bolig[Faktiske\nkostnader]","v":{"v":-81,"d":"-kr 81"}},null,"Inntekt 1",{"v":4000,"d":"kr 4,000"}]
[null,"Gass",{"v":22,"d":"kr 22"},{"v":35,"d":"kr 35"},{"$f":"Bolig[Planlagte\nkostnader]-Bolig[Faktiske\nkostnader]","v":{"v":-13,"d":"-kr 13"}},null,"Inntekt 2",{"v":1200,"d":"kr 1,200"}]
[null,"Vann og kloakk",{"v":8,"d":"kr 8"},{"v":8,"d":"kr 8"},{"$f":"Bolig[Planlagte\nkostnader]-Bolig[Faktiske\nkostnader]","v":{"v":0,"d":"kr 0"}},null,"Ekstra inntekt",{"v":300,"d":"kr 300"}]
[null,"Kabel-TV",{"v":34,"d":"kr 34"},{"v":39,"d":"kr 39"},{"$f":"Bolig[Planlagte\nkostnader]-Bolig[Faktiske\nkostnader]","v":{"v":-5,"d":"-kr 5"}},null,"Total månedlig inntekt",{"$f":"SUM(H9:H11)","v":{"v":5500,"d":"kr 5,500"}}]
[null,"Fjerning av søppel",{"v":10,"d":"kr 10"},{"v":10,"d":"kr 10"},{"$f":"Bolig[Planlagte\nkostnader]-Bolig[Faktiske\nkostnader]","v":{"v":0,"d":"kr 0"}}]
[null,"Vedlikehold eller reparasjoner",{"v":23,"d":"kr 23"},{"v":0,"d":"kr 0"},{"$f":"Bolig[Planlagte\nkostnader]-Bolig[Faktiske\nkostnader]","v":{"v":23,"d":"kr 23"}},null,"Saldo","Beløp"]
[null,"Utstyr",{"v":0,"d":"kr 0"},{"v":0,"d":"kr 0"},{"$f":"Bolig[Planlagte\nkostnader]-Bolig[Faktiske\nkostnader]","v":{"v":0,"d":"kr 0"}},null,"Planlagt saldo",{"$f":"SUM(H6-'Månedlig familiebudsjett'!$C$3:$C$3)","v":{"v":4297,"d":"kr 4,297"}}]
[null,"Annet",{"v":0,"d":"kr 0"},{"v":0,"d":"kr 0"},{"$f":"Bolig[Planlagte\nkostnader]-Bolig[Faktiske\nkostnader]","v":{"v":0,"d":"kr 0"}},null,"Faktisk saldo",{"$f":"SUM(H12-D3)","v":{"v":4183,"d":"kr 4,183"}}]
[null,"Totalt",{"$f":"SUBTOTAL(109,Bolig[Planlagte\nkostnader])","v":{"v":1203,"d":"kr 1,203"}},{"$f":"SUBTOTAL(109,Bolig[Faktiske\nkostnader])","v":{"v":1317,"d":"kr 1,317"}},{"$f":"SUBTOTAL(109,Bolig[Forskjell])","v":{"v":-114,"d":"-kr 114"}},null,"Forskjell",{"$f":"SUM(H16-H15)","v":{"v":-114,"d":"-kr 114"}}]
[]
[null,"Transport","Planlagte\nkostnader","Faktiske\nkostnader","Forskjell",null,"Lån","Planlagte\nkostnader","Faktiske\nkostnader","Forskjell"]
[null,"Avdrag på bil 1",null,null,{"$f":"Transport[Planlagte\nkostnader]-Transport[Faktiske\nkostnader]","v":{"v":0,"d":"kr 0"}},null,"Personlig",null,null,{"$f":"Lån[Planlagte\nkostnader]-Lån[Faktiske\nkostnader]","v":{"v":0,"d":"kr 0"}}]
[null,"Avdrag på bil 2",null,null,{"$f":"Transport[Planlagte\nkostnader]-Transport[Faktiske\nkostnader]","v":{"v":0,"d":"kr 0"}},null,"Student",null,null,{"$f":"Lån[Planlagte\nkostnader]-Lån[Faktiske\nkostnader]","v":{"v":0,"d":"kr 0"}}]
[null,"Buss/taxi",null,null,{"$f":"Transport[Planlagte\nkostnader]-Transport[Faktiske\nkostnader]","v":{"v":0,"d":"kr 0"}},null,"Kredittkort",null,null,{"$f":"Lån[Planlagte\nkostnader]-Lån[Faktiske\nkostnader]","v":{"v":0,"d":"kr 0"}}]
[null,"Forsikring",null,null,{"$f":"Transport[Planlagte\nkostnader]-Transport[Faktiske\nkostnader]","v":{"v":0,"d":"kr 0"}},null,"Kredittkort",null,null,{"$f":"Lån[Planlagte\nkostnader]-Lån[Faktiske\nkostnader]","v":{"v":0,"d":"kr 0"}}]
[null,"Lisensiering",null,null,{"$f":"Transport[Planlagte\nkostnader]-Transport[Faktiske\nkostnader]","v":{"v":0,"d":"kr 0"}},null,"Kredittkort",null,null,{"$f":"Lån[Planlagte\nkostnader]-Lån[Faktiske\nkostnader]","v":{"v":0,"d":"kr 0"}}]
[null,"Drivstoff",null,null,{"$f":"Transport[Planlagte\nkostnader]-Transport[Faktiske\nkostnader]","v":{"v":0,"d":"kr 0"}},null,"Annet",null,null,{"$f":"Lån[Planlagte\nkostnader]-Lån[Faktiske\nkostnader]","v":{"v":0,"d":"kr 0"}}]
[null,"Vedlikehold",null,null,{"$f":"Transport[Planlagte\nkostnader]-Transport[Faktiske\nkostnader]","v":{"v":0,"d":"kr 0"}},null,"Totalt",{"$f":"SUBTOTAL(109,Lån[Planlagte\nkostnader])","v":{"v":0,"d":"kr 0"}},{"$f":"SUBTOTAL(109,Lån[Faktiske\nkostnader])","v":{"v":0,"d":"kr 0"}},{"$f":"SUBTOTAL(109,Lån[Forskjell])","v":{"v":0,"d":"kr 0"}}]
[null,"Annet",null,null,{"$f":"Transport[Planlagte\nkostnader]-Transport[Faktiske\nkostnader]","v":{"v":0,"d":"kr 0"}}]
[null,"Totalt",{"$f":"SUBTOTAL(109,Transport[Planlagte\nkostnader])","v":{"v":0,"d":"kr 0"}},{"$f":"SUBTOTAL(109,Transport[Faktiske\nkostnader])","v":{"v":0,"d":"kr 0"}},{"$f":"SUBTOTAL(109,Transport[Forskjell])","v":{"v":0,"d":"kr 0"}},null,"Underholdning","Planlagte\nkostnader","Faktiske\nkostnader","Forskjell"]
[{"$nulls":6},"Video/DVD",null,null,{"$f":"Underholdning[Planlagte\nkostnader]-Underholdning[Faktiske\nkostnader]","v":{"v":0,"d":"kr 0"}}]
[null,"Forsikring","Planlagte\nkostnader","Faktiske\nkostnader","Forskjell",null,"CD-er",null,null,{"$f":"Underholdning[Planlagte\nkostnader]-Underholdning[Faktiske\nkostnader]","v":{"v":0,"d":"kr 0"}}]
[null,"Hjem",null,null,{"$f":"Forsikring[Planlagte\nkostnader]-Forsikring[Faktiske\nkostnader]","v":{"v":0,"d":"kr 0"}},null,"Filmer",null,null,{"$f":"Underholdning[Planlagte\nkostnader]-Underholdning[Faktiske\nkostnader]","v":{"v":0,"d":"kr 0"}}]
[null,"Helse",null,null,{"$f":"Forsikring[Planlagte\nkostnader]-Forsikring[Faktiske\nkostnader]","v":{"v":0,"d":"kr 0"}},null,"Konserter",null,null,{"$f":"Underholdning[Planlagte\nkostnader]-Underholdning[Faktiske\nkostnader]","v":{"v":0,"d":"kr 0"}}]
[null,"Liv",null,null,{"$f":"Forsikring[Planlagte\nkostnader]-Forsikring[Faktiske\nkostnader]","v":{"v":0,"d":"kr 0"}},null,"Sportsarrangementer",null,null,{"$f":"Underholdning[Planlagte\nkostnader]-Underholdning[Faktiske\nkostnader]","v":{"v":0,"d":"kr 0"}}]
[null,"Annet",null,null,{"$f":"Forsikring[Planlagte\nkostnader]-Forsikring[Faktiske\nkostnader]","v":{"v":0,"d":"kr 0"}},null,"Teater",null,null,{"$f":"Underholdning[Planlagte\nkostnader]-Underholdning[Faktiske\nkostnader]","v":{"v":0,"d":"kr 0"}}]
[null,"Totalt",{"$f":"SUBTOTAL(109,Forsikring[Planlagte\nkostnader])","v":{"v":0,"d":"kr 0"}},{"$f":"SUBTOTAL(109,Forsikring[Faktiske\nkostnader])","v":{"v":0,"d":"kr 0"}},{"$f":"SUBTOTAL(109,Forsikring[Forskjell])","v":{"v":0,"d":"kr 0"}},null,"Annet",null,null,{"$f":"Underholdning[Planlagte\nkostnader]-Underholdning[Faktiske\nkostnader]","v":{"v":0,"d":"kr 0"}}]
[{"$nulls":6},"Totalt",{"$f":"SUBTOTAL(109,Underholdning[Planlagte\nkostnader])","v":{"v":0,"d":"kr 0"}},{"$f":"SUBTOTAL(109,Underholdning[Faktiske\nkostnader])","v":{"v":0,"d":"kr 0"}},{"$f":"SUBTOTAL(109,Underholdning[Forskjell])","v":{"v":0,"d":"kr 0"}}]
[null,"Mat","Planlagte\nkostnader","Faktiske\nkostnader","Forskjell"]
[null,"Dagligvarer",null,null,{"$f":"Mat[Planlagte\nkostnader]-Mat[Faktiske\nkostnader]","v":{"v":0,"d":"kr 0"}},null,"Skatt","Planlagte \nkostnader","Faktiske \nkostnader","Forskjell"]
[null,"Spise ute",null,null,{"$f":"Mat[Planlagte\nkostnader]-Mat[Faktiske\nkostnader]","v":{"v":0,"d":"kr 0"}},null,"Føderal",null,null,{"$f":"Skatt[Planlagte \nkostnader]-Skatt[Faktiske \nkostnader]","v":{"v":0,"d":"kr 0"}}]
[null,"Annet",null,null,{"$f":"Mat[Planlagte\nkostnader]-Mat[Faktiske\nkostnader]","v":{"v":0,"d":"kr 0"}},null,"Delstat",null,null,{"$f":"Skatt[Planlagte \nkostnader]-Skatt[Faktiske \nkostnader]","v":{"v":0,"d":"kr 0"}}]
[null,"Totalt",{"$f":"SUBTOTAL(109,Mat[Planlagte\nkostnader])","v":{"v":0,"d":"kr 0"}},{"$f":"SUBTOTAL(109,Mat[Faktiske\nkostnader])","v":{"v":0,"d":"kr 0"}},{"$f":"SUBTOTAL(109,Mat[Forskjell])","v":{"v":0,"d":"kr 0"}},null,"Lokal",null,null,{"$f":"Skatt[Planlagte \nkostnader]-Skatt[Faktiske \nkostnader]","v":{"v":0,"d":"kr 0"}}]
[{"$nulls":6},"Annet",null,null,{"$f":"Skatt[Planlagte \nkostnader]-Skatt[Faktiske \nkostnader]","v":{"v":0,"d":"kr 0"}}]
[null,"Barn","Planlagte\nkostnader","Faktiske\nkostnader","Forskjell",null,"Totalt",{"$f":"SUBTOTAL(109,Skatt[Planlagte \nkostnader])","v":{"v":0,"d":"kr 0"}},{"$f":"SUBTOTAL(109,Skatt[Faktiske \nkostnader])","v":{"v":0,"d":"kr 0"}},{"$f":"SUBTOTAL(109,Skatt[Forskjell])","v":{"v":0,"d":"kr 0"}}]
[null,"Medisinsk",null,null,{"$f":"Barn[Planlagte\nkostnader]-Barn[Faktiske\nkostnader]","v":{"v":0,"d":"kr 0"}}]
[null,"Klær",null,null,{"$f":"Barn[Planlagte\nkostnader]-Barn[Faktiske\nkostnader]","v":{"v":0,"d":"kr 0"}},null,"Personlig pleie","Planlagte\nkostnader","Faktiske\nkostnader","Forskjell"]
[null,"Skoleundervisning",null,null,{"$f":"Barn[Planlagte\nkostnader]-Barn[Faktiske\nkostnader]","v":{"v":0,"d":"kr 0"}},null,"Medisinsk",null,null,{"$f":"PersonalCare[Planlagte\nkostnader]-PersonalCare[Faktiske\nkostnader]","v":{"v":0,"d":"kr 0"}}]
[null,"Skoleutstyr",null,null,{"$f":"Barn[Planlagte\nkostnader]-Barn[Faktiske\nkostnader]","v":{"v":0,"d":"kr 0"}},null,"Hår/negler",null,null,{"$f":"PersonalCare[Planlagte\nkostnader]-PersonalCare[Faktiske\nkostnader]","v":{"v":0,"d":"kr 0"}}]
[null,"Kontingenter",null,null,{"$f":"Barn[Planlagte\nkostnader]-Barn[Faktiske\nkostnader]","v":{"v":0,"d":"kr 0"}},null,"Klær",null,null,{"$f":"PersonalCare[Planlagte\nkostnader]-PersonalCare[Faktiske\nkostnader]","v":{"v":0,"d":"kr 0"}}]
[null,"Lunsjpenger",null,null,{"$f":"Barn[Planlagte\nkostnader]-Barn[Faktiske\nkostnader]","v":{"v":0,"d":"kr 0"}},null,"Rens av klær",null,null,{"$f":"PersonalCare[Planlagte\nkostnader]-PersonalCare[Faktiske\nkostnader]","v":{"v":0,"d":"kr 0"}}]
[null,"Barnepass",null,null,{"$f":"Barn[Planlagte\nkostnader]-Barn[Faktiske\nkostnader]","v":{"v":0,"d":"kr 0"}},null,"Treningsstudio",null,null,{"$f":"PersonalCare[Planlagte\nkostnader]-PersonalCare[Faktiske\nkostnader]","v":{"v":0,"d":"kr 0"}}]
[null,"Leker/spill",null,null,{"$f":"Barn[Planlagte\nkostnader]-Barn[Faktiske\nkostnader]","v":{"v":0,"d":"kr 0"}},null,"Kontingenter",null,null,{"$f":"PersonalCare[Planlagte\nkostnader]-PersonalCare[Faktiske\nkostnader]","v":{"v":0,"d":"kr 0"}}]
[null,"Annet",null,null,{"$f":"Barn[Planlagte\nkostnader]-Barn[Faktiske\nkostnader]","v":{"v":0,"d":"kr 0"}},null,"Annet",null,null,{"$f":"PersonalCare[Planlagte\nkostnader]-PersonalCare[Faktiske\nkostnader]","v":{"v":0,"d":"kr 0"}}]
[null,"Totalt",{"$f":"SUBTOTAL(109,Barn[Planlagte\nkostnader])","v":{"v":0,"d":"kr 0"}},{"$f":"SUBTOTAL(109,Barn[Faktiske\nkostnader])","v":{"v":0,"d":"kr 0"}},{"$f":"SUBTOTAL(109,Barn[Forskjell])","v":{"v":0,"d":"kr 0"}},null,"Totalt",{"$f":"SUBTOTAL(109,PersonalCare[Planlagte\nkostnader])","v":{"v":0,"d":"kr 0"}},{"$f":"SUBTOTAL(109,PersonalCare[Faktiske\nkostnader])","v":{"v":0,"d":"kr 0"}},{"$f":"SUBTOTAL(109,PersonalCare[Forskjell])","v":{"v":0,"d":"kr 0"}}]
[]
[null,"Juridisk","Planlagte\nkostnader","Faktiske\nkostnader","Forskjell",null,"Kjæledyr","Planlagte\nkostnader","Faktiske\nkostnader","Forskjell"]
[null,"Advokat",null,null,{"$f":"Juridisk[Planlagte\nkostnader]-Juridisk[Faktiske\nkostnader]","v":{"v":0,"d":"kr 0"}},null,"Mat",null,null,{"$f":"Kjæledyr[Planlagte\nkostnader]-Kjæledyr[Faktiske\nkostnader]","v":{"v":0,"d":"kr 0"}}]
[null,"Underholdningsbidrag",null,null,{"$f":"Juridisk[Planlagte\nkostnader]-Juridisk[Faktiske\nkostnader]","v":{"v":0,"d":"kr 0"}},null,"Medisinsk",null,null,{"$f":"Kjæledyr[Planlagte\nkostnader]-Kjæledyr[Faktiske\nkostnader]","v":{"v":0,"d":"kr 0"}}]
[null,"Betalinger",null,null,{"$f":"Juridisk[Planlagte\nkostnader]-Juridisk[Faktiske\nkostnader]","v":{"v":0,"d":"kr 0"}},null,"Pleie",null,null,{"$f":"Kjæledyr[Planlagte\nkostnader]-Kjæledyr[Faktiske\nkostnader]","v":{"v":0,"d":"kr 0"}}]
[null,"Annet",null,null,{"$f":"Juridisk[Planlagte\nkostnader]-Juridisk[Faktiske\nkostnader]","v":{"v":0,"d":"kr 0"}},null,"Leker",null,null,{"$f":"Kjæledyr[Planlagte\nkostnader]-Kjæledyr[Faktiske\nkostnader]","v":{"v":0,"d":"kr 0"}}]
[null,"Totalt",{"$f":"SUBTOTAL(109,Juridisk[Planlagte\nkostnader])","v":{"v":0,"d":"kr 0"}},{"$f":"SUBTOTAL(109,Juridisk[Faktiske\nkostnader])","v":{"v":0,"d":"kr 0"}},{"$f":"SUBTOTAL(109,Juridisk[Forskjell])","v":{"v":0,"d":"kr 0"}},null,"Annet",null,null,{"$f":"Kjæledyr[Planlagte\nkostnader]-Kjæledyr[Faktiske\nkostnader]","v":{"v":0,"d":"kr 0"}}]
[{"$nulls":6},"Totalt",{"$f":"SUBTOTAL(109,Kjæledyr[Planlagte\nkostnader])","v":{"v":0,"d":"kr 0"}},{"$f":"SUBTOTAL(109,Kjæledyr[Faktiske\nkostnader])","v":{"v":0,"d":"kr 0"}},{"$f":"SUBTOTAL(109,Kjæledyr[Forskjell])","v":{"v":0,"d":"kr 0"}}]
[null,"Sparing/investeringer","Planlagte\nkostnader","Faktiske\nkostnader","Forskjell"]
[null,"Pensjonskonto",null,null,{"$f":"Sparing[Planlagte\nkostnader]-Sparing[Faktiske\nkostnader]","v":{"v":0,"d":"kr 0"}},null,"Gaver og donasjoner","Planlagte\nkostnader","Faktiske\nkostnader","Forskjell"]
[null,"Investeringskonto",null,null,{"$f":"Sparing[Planlagte\nkostnader]-Sparing[Faktiske\nkostnader]","v":{"v":0,"d":"kr 0"}},null,"Veldedighet 1",null,null,{"$f":"Gaver[Planlagte\nkostnader]-Gaver[Faktiske\nkostnader]","v":{"v":0,"d":"kr 0"}}]
[null,"Høyskole",null,null,{"$f":"Sparing[Planlagte\nkostnader]-Sparing[Faktiske\nkostnader]","v":{"v":0,"d":"kr 0"}},null,"Veldedighet 2",null,null,{"$f":"Gaver[Planlagte\nkostnader]-Gaver[Faktiske\nkostnader]","v":{"v":0,"d":"kr 0"}}]
[null,"Annet",null,null,{"$f":"Sparing[Planlagte\nkostnader]-Sparing[Faktiske\nkostnader]","v":{"v":0,"d":"kr 0"}},null,"Veldedighet 3",null,null,{"$f":"Gaver[Planlagte\nkostnader]-Gaver[Faktiske\nkostnader]","v":{"v":0,"d":"kr 0"}}]
[null,"Totalt",{"$f":"SUBTOTAL(109,Sparing[Planlagte\nkostnader])","v":{"v":0,"d":"kr 0"}},{"$f":"SUBTOTAL(109,Sparing[Faktiske\nkostnader])","v":{"v":0,"d":"kr 0"}},{"$f":"SUBTOTAL(109,Sparing[Forskjell])","v":{"v":0,"d":"kr 0"}},null,"Totalt",{"$f":"SUBTOTAL(109,Gaver[Planlagte\nkostnader])","v":{"v":0,"d":"kr 0"}},{"$f":"SUBTOTAL(109,Gaver[Faktiske\nkostnader])","v":{"v":0,"d":"kr 0"}},{"$f":"SUBTOTAL(109,Gaver[Forskjell])","v":{"v":0,"d":"kr 0"}}]